[Event "Live Chess"]
[Site "Chess.com"]
[Date "2024.06.02"]
[Round "-"]
[White "Queensandpawns"]
[Black "Andriy_Yaremovych"]
[Result "1-0"]
[WhiteElo "2240"]
[BlackElo "1590"]
[TimeControl "300"]
[EndTime "4:03:04 PDT"]
[Termination "Queensandpawns won by resignation"]

1. e4 {[%clk 0:04:59.4]} 1... b6 {[%clk 0:04:57.7]} 2. d4 {[%clk 0:04:58.7]}
2... Bb7 {[%clk 0:04:57.1]} 3. Nc3 {[%clk 0:04:58.6]} 3... Nf6 {[%clk
0:04:56.1]} 4. e5 {[%clk 0:04:58]} 4... Nd5 {[%clk 0:04:54.5]} 5. Nf3 {[%clk
0:04:56.7]} 5... e6 {[%clk 0:04:53]} 6. Bd3 {[%clk 0:04:56.2]} 6... Bb4 {[%clk
0:04:51.7]} 7. O-O {[%clk 0:04:53.7]} 7... Nxc3 {[%clk 0:04:49.1]} 8. bxc3
{[%clk 0:04:53.6]} 8... Bxc3 {[%clk 0:04:48.3]} 9. Rb1 {[%clk 0:04:52.4]} 9...
h6 {[%clk 0:04:45.9]} 10. Ba3 {[%clk 0:04:51.8]} 10... Nc6 {[%clk 0:04:41.1]}
11. Be4 {[%clk 0:04:49]} 11... Ba5 {[%clk 0:04:31.9]} 12. d5 {[%clk 0:04:46]}
12... exd5 {[%clk 0:04:31.6]} 13. Bxd5 {[%clk 0:04:45.9]} 13... Ba6 {[%clk
0:04:20.7]} 14. c4 {[%clk 0:04:33.3]} 14... g5 {[%clk 0:04:16.3]} 15. Qd3 {[%clk
0:04:18.5]} 15... g4 {[%clk 0:04:10.2]} 16. Qf5 {[%clk 0:04:17.8]} 1-0

[Event "Live Chess"]
[Site "Chess.com"]
[Date "2024.06.02"]
[Round "-"]
[White "elis06"]
[Black "Duke_of_Bebington"]
[Result "1-0"]
[WhiteElo "2350"]
[BlackElo "1639"]
[TimeControl "300"]
[EndTime "4:03:21 PDT"]
[Termination "elis06 won by resignation"]

1. d4 {[%clk 0:04:57.9]} 1... d5 {[%clk 0:04:58.1]} 2. Nf3 {[%clk 0:04:55.6]}
2... Nf6 {[%clk 0:04:56.6]} 3. Bf4 {[%clk 0:04:54.3]} 3... e6 {[%clk 0:04:44.9]}
4. e3 {[%clk 0:04:52.7]} 4... Bd6 {[%clk 0:04:44.1]} 5. Ne5 {[%clk 0:04:50.2]}
5... Nbd7 {[%clk 0:04:41.9]} 6. Nd2 {[%clk 0:04:47.2]} 6... Bxe5 {[%clk
0:04:41]} 7. dxe5 {[%clk 0:04:40.4]} 7... Nh5 {[%clk 0:04:40]} 8. Qxh5 {[%clk
0:04:38.7]} 8... g6 {[%clk 0:04:34.4]} 9. Qd1 {[%clk 0:04:35.6]} 9... c6 {[%clk
0:04:31.4]} 10. Bd3 {[%clk 0:04:32.9]} 10... O-O {[%clk 0:04:29.6]} 11. h4
{[%clk 0:04:31.5]} 1-0

[Event "Live Chess"]
[Site "Chess.com"]
[Date "2024.06.02"]
[Round "-"]
[White "RichardABates"]
[Black "PureDashingOctopus"]
[Result "1/2-1/2"]
[WhiteElo "2333"]
[BlackElo "2271"]
[TimeControl "300"]
[EndTime "4:03:40 PDT"]
[Termination "Game drawn - insufficient material"]

1. d4 {[%clk 0:04:57.5]} 1... Nf6 {[%clk 0:04:58.8]} 2. Nf3 {[%clk 0:04:56]}
2... g6 {[%clk 0:04:57.6]} 3. g3 {[%clk 0:04:53.1]} 3... Bg7 {[%clk 0:04:56.2]}
4. c4 {[%clk 0:04:49.9]} 4... c6 {[%clk 0:04:53.4]} 5. Bg2 {[%clk 0:04:48.6]}
5... O-O {[%clk 0:04:51.8]} 6. O-O {[%clk 0:04:47.3]} 6... d5 {[%clk 0:04:51]}
7. cxd5 {[%clk 0:04:45.8]} 7... cxd5 {[%clk 0:04:50.1]} 8. Ne5 {[%clk
0:04:44.3]} 8... Bf5 {[%clk 0:04:35.5]} 9. Nc3 {[%clk 0:04:41.1]} 9... Nc6
{[%clk 0:04:33.5]} 10. Bf4 {[%clk 0:04:30.3]} 10... Rc8 {[%clk 0:04:29.4]} 11.
Rc1 {[%clk 0:04:27.4]} 11... Ne4 {[%clk 0:04:24]} 12. Nxe4 {[%clk 0:04:17.8]}
12... Bxe4 {[%clk 0:04:20.9]} 13. f3 {[%clk 0:04:16.2]} 13... Bf5 {[%clk
0:04:16.1]} 14. e4 {[%clk 0:04:04.6]} 14... Be6 {[%clk 0:04:07.4]} 15. Nxc6
{[%clk 0:04:01.1]} 15... Rxc6 {[%clk 0:04:04.2]} 16. Rxc6 {[%clk 0:03:59]} 16...
bxc6 {[%clk 0:04:04.1]} 17. e5 {[%clk 0:03:57.5]} 17... c5 {[%clk 0:04:02.1]}
18. Be3 {[%clk 0:03:54.4]} 18... cxd4 {[%clk 0:04:00.6]} 19. Bxd4 {[%clk
0:03:53.1]} 19... Qc7 {[%clk 0:03:58.3]} 20. f4 {[%clk 0:03:48]} 20... Rc8
{[%clk 0:03:57.7]} 21. Qd2 {[%clk 0:03:43.8]} 21... Qc2 {[%clk 0:03:34.5]} 22.
Rd1 {[%clk 0:03:41.6]} 22... Rc7 {[%clk 0:03:08.2]} 23. Bc3 {[%clk 0:03:30.7]}
23... Qxd2 {[%clk 0:03:05.7]} 24. Rxd2 {[%clk 0:03:29.3]} 24... d4 {[%clk
0:02:59.2]} 25. Rxd4 {[%clk 0:03:26.4]} 25... Bxa2 {[%clk 0:02:58]} 26. Rd8+
{[%clk 0:03:23.3]} 26... Bf8 {[%clk 0:02:56.6]} 27. g4 {[%clk 0:03:08.1]} 27...
Be6 {[%clk 0:02:54.1]} 28. h3 {[%clk 0:02:58.6]} 28... Rc8 {[%clk 0:02:45.6]}
29. Rd1 {[%clk 0:02:46.5]} 29... Bh6 {[%clk 0:02:42.6]} 30. Rd4 {[%clk
0:02:39.6]} 30... Bg7 {[%clk 0:02:30.9]} 31. Be4 {[%clk 0:02:36.2]} 31... g5
{[%clk 0:02:22.8]} 32. f5 {[%clk 0:02:28.8]} 32... Bxe5 {[%clk 0:02:17.3]} 33.
Ra4 {[%clk 0:01:26.1]} 33... Bxc3 {[%clk 0:01:46.7]} 34. bxc3 {[%clk 0:01:19.6]}
34... Bb3 {[%clk 0:01:43.5]} 35. Rxa7 {[%clk 0:01:16.7]} 35... Rxc3 {[%clk
0:01:42.4]} 36. Rxe7 {[%clk 0:01:13.8]} 36... Rxh3 {[%clk 0:01:40.6]} 37. f6
{[%clk 0:01:10]} 37... Ba4 {[%clk 0:00:34.8]} 38. Kg2 {[%clk 0:00:54.8]} 38...
Rh4 {[%clk 0:00:26.9]} 39. Ra7 {[%clk 0:00:51]} 39... Rxg4+ {[%clk 0:00:25.2]}
40. Kf3 {[%clk 0:00:40.8]} 40... Rf4+ {[%clk 0:00:24]} 41. Ke3 {[%clk
0:00:38.1]} 41... Be8 {[%clk 0:00:21.4]} 42. Ra8 {[%clk 0:00:33.9]} 42... Kf8
{[%clk 0:00:20.7]} 43. Bc6 {[%clk 0:00:32.2]} 43... Rxf6 {[%clk 0:00:20.4]} 44.
Rxe8+ {[%clk 0:00:29.6]} 44... Kg7 {[%clk 0:00:19.8]} 45. Be4 {[%clk 0:00:28.1]}
45... Re6 {[%clk 0:00:18.9]} 46. Rxe6 {[%clk 0:00:26.4]} 46... fxe6 {[%clk
0:00:18.8]} 47. Kf3 {[%clk 0:00:25.4]} 47... h5 {[%clk 0:00:18.7]} 48. Kg3
{[%clk 0:00:24]} 48... Kf6 {[%clk 0:00:18.6]} 49. Bf3 {[%clk 0:00:22.5]} 49...
Ke5 {[%clk 0:00:18.5]} 50. Bxh5 {[%clk 0:00:21.2]} 50... Kd4 {[%clk 0:00:18.4]}
51. Kg4 {[%clk 0:00:20.4]} 51... e5 {[%clk 0:00:18.3]} 52. Kxg5 {[%clk
0:00:19.7]} 52... e4 {[%clk 0:00:18.2]} 53. Kf5 {[%clk 0:00:18.9]} 53... e3
{[%clk 0:00:18.1]} 54. Bf3 {[%clk 0:00:18.1]} 54... e2 {[%clk 0:00:18]} 55. Bxe2
{[%clk 0:00:17.4]} 1/2-1/2

[Event "Live Chess"]
[Site "Chess.com"]
[Date "2024.06.02"]
[Round "-"]
[White "StoreySniper"]
[Black "lateforthesky"]
[Result "1-0"]
[WhiteElo "2493"]
[BlackElo "2075"]
[TimeControl "300"]
[EndTime "4:03:41 PDT"]
[Termination "StoreySniper won by resignation"]

1. e4 {[%clk 0:04:58.3]} 1... c5 {[%clk 0:04:58]} 2. Nf3 {[%clk 0:04:56.7]} 2...
Nf6 {[%clk 0:04:56.4]} 3. e5 {[%clk 0:04:52.7]} 3... Nd5 {[%clk 0:04:55.5]} 4.
c4 {[%clk 0:04:50.7]} 4... Nc7 {[%clk 0:04:54.2]} 5. d4 {[%clk 0:04:47.8]} 5...
cxd4 {[%clk 0:04:53]} 6. Qxd4 {[%clk 0:04:46.5]} 6... Nc6 {[%clk 0:04:49.7]} 7.
Qe4 {[%clk 0:04:43.7]} 7... g6 {[%clk 0:04:43.7]} 8. Nc3 {[%clk 0:04:41.4]} 8...
Bg7 {[%clk 0:04:42.3]} 9. Bf4 {[%clk 0:04:39.6]} 9... Ne6 {[%clk 0:04:40.1]} 10.
Bg3 {[%clk 0:04:38]} 10... O-O {[%clk 0:04:38.5]} 11. Be2 {[%clk 0:04:33.2]}
11... b6 {[%clk 0:04:11.7]} 12. h4 {[%clk 0:04:28.8]} 12... h5 {[%clk
0:04:07.4]} 13. O-O-O {[%clk 0:04:13.2]} 13... Bb7 {[%clk 0:04:01.3]} 14. Qe3
{[%clk 0:04:10.9]} 14... Rc8 {[%clk 0:03:34.4]} 15. Kb1 {[%clk 0:04:05.5]} 15...
f5 {[%clk 0:03:17.3]} 16. exf6 {[%clk 0:03:48.6]} 16... Rxf6 {[%clk 0:03:03.4]}
17. Nd5 {[%clk 0:03:44.2]} 17... Rf8 {[%clk 0:02:56.7]} 18. Bd3 {[%clk
0:03:38.2]} 18... Qe8 {[%clk 0:02:48]} 19. Rhe1 {[%clk 0:03:25.1]} 19... Nc5
{[%clk 0:02:30.9]} 20. Bc2 {[%clk 0:03:13]} 20... e6 {[%clk 0:02:27.1]} 21. Nf4
{[%clk 0:03:02.2]} 21... Ne7 {[%clk 0:02:21.6]} 22. Ne5 {[%clk 0:02:53.2]} 22...
Bxe5 {[%clk 0:02:01.5]} 23. Qxe5 {[%clk 0:02:51.1]} 23... Nf5 {[%clk 0:01:59.3]}
24. b4 {[%clk 0:02:21]} 24... Na6 {[%clk 0:01:31.7]} 25. a3 {[%clk 0:02:14.8]}
25... Rxc4 {[%clk 0:01:06.6]} 26. Bb3 {[%clk 0:02:11.8]} 26... Rc8 {[%clk
0:00:57.6]} 27. Rxd7 {[%clk 0:02:07.6]} 27... Qxd7 {[%clk 0:00:35.1]} 28. Bxe6+
{[%clk 0:02:04.4]} 28... Qxe6 {[%clk 0:00:34.3]} 29. Qxe6+ {[%clk 0:02:02.7]}
29... Rf7 {[%clk 0:00:24.2]} 30. Qxg6+ {[%clk 0:01:57.4]} 1-0

[Event "Live Chess"]
[Site "Chess.com"]
[Date "2024.06.02"]
[Round "-"]
[White "Kyrylo7770"]
[Black "ClassyChameleon"]
[Result "0-1"]
[WhiteElo "1636"]
[BlackElo "1529"]
[TimeControl "300"]
[EndTime "4:03:49 PDT"]
[Termination "ClassyChameleon won by checkmate"]

1. d4 {[%clk 0:04:59.4]} 1... d5 {[%clk 0:04:59.2]} 2. Nf3 {[%clk 0:04:58.7]}
2... Nc6 {[%clk 0:04:58.8]} 3. Bg5 {[%clk 0:04:58.3]} 3... Bf5 {[%clk
0:04:55.1]} 4. e3 {[%clk 0:04:57.5]} 4... Qd6 {[%clk 0:04:52.6]} 5. c3 {[%clk
0:04:54.9]} 5... O-O-O {[%clk 0:04:51.2]} 6. Bf4 {[%clk 0:04:53.9]} 6... Qf6
{[%clk 0:04:47.5]} 7. Bg5 {[%clk 0:04:52.1]} 7... Qg6 {[%clk 0:04:45]} 8. h4
{[%clk 0:04:48.4]} 8... h5 {[%clk 0:04:42.2]} 9. Na3 {[%clk 0:04:45.4]} 9... Nf6
{[%clk 0:04:33.1]} 10. Qa4 {[%clk 0:04:38.8]} 10... Ne4 {[%clk 0:04:27.4]} 11.
Nb5 {[%clk 0:04:33.6]} 11... Nxg5 {[%clk 0:04:22.5]} 12. Nxg5 {[%clk 0:04:31.8]}
12... a6 {[%clk 0:04:12.1]} 13. Na3 {[%clk 0:04:28.7]} 13... e5 {[%clk 0:04:06]}
14. b4 {[%clk 0:04:16.8]} 14... exd4 {[%clk 0:03:59.4]} 15. cxd4 {[%clk
0:04:14.1]} 15... f6 {[%clk 0:03:57.9]} 16. Nf3 {[%clk 0:04:10.9]} 16... Nxb4
{[%clk 0:03:51.8]} 17. Be2 {[%clk 0:04:02.7]} 17... Nd3+ {[%clk 0:03:42.6]} 18.
Bxd3 {[%clk 0:04:01.5]} 18... Bxd3 {[%clk 0:03:42.5]} 19. Rc1 {[%clk 0:03:56.2]}
19... Qxg2 {[%clk 0:03:39]} 20. Kd2 {[%clk 0:03:25.8]} 20... Qxf3 {[%clk
0:03:18.2]} 21. Kxd3 {[%clk 0:03:24.7]} 21... Bxa3 {[%clk 0:03:12.7]} 22. Qxa3
{[%clk 0:03:18]} 22... Qxf2 {[%clk 0:03:05.2]} 23. Qc3 {[%clk 0:03:16.6]} 23...
c6 {[%clk 0:03:02.8]} 24. Rhf1 {[%clk 0:03:14.7]} 24... Qxh4 {[%clk 0:02:56.8]}
25. Rb1 {[%clk 0:03:13.9]} 25... Qe4+ {[%clk 0:02:52.7]} 26. Kd2 {[%clk
0:03:13.1]} 26... h4 {[%clk 0:02:49.1]} 27. Qb3 {[%clk 0:02:59.3]} 27... Rd7
{[%clk 0:02:35.4]} 28. Rf4 {[%clk 0:02:48.1]} 28... Qg2+ {[%clk 0:02:29.1]} 29.
Kc3 {[%clk 0:02:47.4]} 29... h3 {[%clk 0:02:27.5]} 30. Rb2 {[%clk 0:02:44]}
30... Qg1 {[%clk 0:02:19.4]} 31. Rb1 {[%clk 0:02:39.7]} 31... Qxe3+ {[%clk
0:02:17.8]} 32. Kb4 {[%clk 0:02:38.7]} 32... Qxf4 {[%clk 0:02:16.6]} 33. Kc5
{[%clk 0:02:36.5]} 33... Qd6+ {[%clk 0:02:14.1]} 34. Kb6 {[%clk 0:02:35.4]}
34... Qc7+ {[%clk 0:02:12.3]} 35. Ka7 {[%clk 0:02:34.7]} 35... b6+ {[%clk
0:01:54.8]} 36. Kxa6 {[%clk 0:02:33.6]} 36... Qa7# {[%clk 0:01:54.7]} 0-1

[Event "Live Chess"]
[Site "Chess.com"]
[Date "2024.06.02"]
[Round "-"]
[White "MagnersCarlsberg2870"]
[Black "willc-h99"]
[Result "0-1"]
[WhiteElo "1781"]
[BlackElo "2597"]
[TimeControl "300"]
[EndTime "4:04:00 PDT"]
[Termination "willc-h99 won by resignation"]

1. d4 {[%clk 0:04:57]} 1... g6 {[%clk 0:04:59.9]} 2. e4 {[%clk 0:04:55.4]} 2...
Bg7 {[%clk 0:04:59.4]} 3. Nf3 {[%clk 0:04:53.8]} 3... c6 {[%clk 0:04:58]} 4. Nc3
{[%clk 0:04:52.3]} 4... a6 {[%clk 0:04:56]} 5. a3 {[%clk 0:04:51]} 5... d5
{[%clk 0:04:54.8]} 6. e5 {[%clk 0:04:49]} 6... h5 {[%clk 0:04:51.6]} 7. h4
{[%clk 0:04:43.7]} 7... Bg4 {[%clk 0:04:46.4]} 8. Be2 {[%clk 0:04:41.8]} 8...
Bxf3 {[%clk 0:04:45.1]} 9. Bxf3 {[%clk 0:04:40.8]} 9... Nh6 {[%clk 0:04:42.9]}
10. a4 {[%clk 0:04:30.7]} 10... Nf5 {[%clk 0:04:37.5]} 11. Bf4 {[%clk
0:04:24.9]} 11... Qb6 {[%clk 0:04:32.1]} 12. Rb1 {[%clk 0:04:21.5]} 12... Qxd4
{[%clk 0:04:17.6]} 13. Qxd4 {[%clk 0:04:19.4]} 13... Nxd4 {[%clk 0:04:16.3]} 14.
Bd1 {[%clk 0:04:06]} 14... Nd7 {[%clk 0:04:15.5]} 15. Ne2 {[%clk 0:03:58.7]}
15... Nxe2 {[%clk 0:04:13]} 16. Bxe2 {[%clk 0:03:55.4]} 16... Bxe5 {[%clk
0:04:12.5]} 17. Bxe5 {[%clk 0:03:53.7]} 17... Nxe5 {[%clk 0:04:11.4]} 18. f4
{[%clk 0:03:48.8]} 18... Nd7 {[%clk 0:04:08]} 19. c3 {[%clk 0:03:45.4]} 19...
Nf6 {[%clk 0:04:06.3]} 20. Bf3 {[%clk 0:03:42.2]} 20... Kd7 {[%clk 0:04:04.9]}
21. Ke2 {[%clk 0:03:40.1]} 21... Rhe8 {[%clk 0:04:01.9]} 22. Rhd1 {[%clk
0:03:38.2]} 22... e5 {[%clk 0:04:01]} 23. fxe5 {[%clk 0:03:28.2]} 23... Rxe5+
{[%clk 0:04:00.9]} 24. Kf2 {[%clk 0:03:26.8]} 24... Ne4+ {[%clk 0:03:50.5]} 25.
Bxe4 {[%clk 0:03:24.8]} 25... Rxe4 {[%clk 0:03:50.4]} 26. b3 {[%clk 0:03:22.4]}
26... Rxh4 {[%clk 0:03:49.4]} 27. g3 {[%clk 0:03:20.9]} 27... Rh2+ {[%clk
0:03:47.7]} 28. Kf3 {[%clk 0:03:19]} 28... Re8 {[%clk 0:03:45.4]} 29. Re1 {[%clk
0:03:16.6]} 29... Rxe1 {[%clk 0:03:43.1]} 30. Rxe1 {[%clk 0:03:15.6]} 30... Rb2
{[%clk 0:03:42.7]} 31. b4 {[%clk 0:03:13.5]} 31... Rb3 {[%clk 0:03:40.9]} 32.
Re3 {[%clk 0:03:11.5]} 32... d4 {[%clk 0:03:39.7]} 33. Rd3 {[%clk 0:03:09]}
33... Rxc3 {[%clk 0:03:38.7]} 34. Rxc3 {[%clk 0:03:05.5]} 34... dxc3 {[%clk
0:03:38.6]} 35. Ke2 {[%clk 0:03:04.2]} 35... g5 {[%clk 0:03:38.1]} 0-1

[Event "Live Chess"]
[Site "Chess.com"]
[Date "2024.06.02"]
[Round "-"]
[White "Tatarinov_Maxim"]
[Black "yarek"]
[Result "1-0"]
[WhiteElo "2307"]
[BlackElo "1750"]
[TimeControl "300"]
[EndTime "4:04:01 PDT"]
[Termination "Tatarinov_Maxim won by resignation"]

1. Nf3 {[%clk 0:04:57.1]} 1... g6 {[%clk 0:04:58.9]} 2. g3 {[%clk 0:04:54.8]}
2... Bg7 {[%clk 0:04:56.6]} 3. Bg2 {[%clk 0:04:53.6]} 3... c6 {[%clk 0:04:55.4]}
4. O-O {[%clk 0:04:53]} 4... d5 {[%clk 0:04:54.6]} 5. c4 {[%clk 0:04:52.6]} 5...
Nf6 {[%clk 0:04:53]} 6. Qc2 {[%clk 0:04:52]} 6... O-O {[%clk 0:04:50.1]} 7. b3
{[%clk 0:04:51.3]} 7... Bf5 {[%clk 0:04:48.1]} 8. d3 {[%clk 0:04:49.7]} 8...
Nbd7 {[%clk 0:04:44.5]} 9. Bb2 {[%clk 0:04:48.9]} 9... Re8 {[%clk 0:04:35.8]}
10. Nd4 {[%clk 0:04:47.5]} 10... e5 {[%clk 0:04:31.4]} 11. Nxf5 {[%clk
0:04:45.9]} 11... gxf5 {[%clk 0:04:31.3]} 12. Nd2 {[%clk 0:04:40.9]} 12... f4
{[%clk 0:04:19.3]} 13. Nf3 {[%clk 0:04:37]} 13... e4 {[%clk 0:04:14.5]} 14. Nh4
{[%clk 0:04:32.7]} 14... Ne5 {[%clk 0:03:40.6]} 15. gxf4 {[%clk 0:04:12.3]}
15... exd3 {[%clk 0:03:30.5]} 16. exd3 {[%clk 0:04:05.8]} 16... Neg4 {[%clk
0:03:23.7]} 17. Nf5 {[%clk 0:03:57.5]} 17... Bf8 {[%clk 0:03:12.7]} 18. h3
{[%clk 0:03:54.7]} 18... Nh6 {[%clk 0:03:06.6]} 19. d4 {[%clk 0:03:45.2]} 19...
Re6 {[%clk 0:02:56.1]} 20. Rae1 {[%clk 0:03:21.8]} 20... Qd7 {[%clk 0:02:39.8]}
21. Nxh6+ {[%clk 0:03:13.8]} 21... Bxh6 {[%clk 0:02:37.7]} 22. Qf5 {[%clk
0:03:13.7]} 22... Rae8 {[%clk 0:02:27.8]} 23. Re5 {[%clk 0:02:57.9]} 23... Rxe5
{[%clk 0:02:11.5]} 24. Qxd7 {[%clk 0:02:55]} 24... Nxd7 {[%clk 0:02:09.4]} 25.
fxe5 {[%clk 0:02:54.2]} 25... dxc4 {[%clk 0:01:54.7]} 26. bxc4 {[%clk
0:02:52.4]} 26... Nb6 {[%clk 0:01:52.4]} 27. Bc1 {[%clk 0:02:26.1]} 27... Bxc1
{[%clk 0:01:36.6]} 28. Rxc1 {[%clk 0:02:24.2]} 28... Rd8 {[%clk 0:01:36.2]} 29.
c5 {[%clk 0:02:13]} 29... Nd5 {[%clk 0:01:27.3]} 30. Bxd5 {[%clk 0:02:10.6]}
30... Rxd5 {[%clk 0:01:25.2]} 31. Rd1 {[%clk 0:02:10]} 31... Kg7 {[%clk
0:01:24]} 32. f4 {[%clk 0:02:09.5]} 32... Kg6 {[%clk 0:01:21.3]} 33. Kf2 {[%clk
0:02:08.9]} 33... Kf5 {[%clk 0:01:20.7]} 34. Ke3 {[%clk 0:02:05.9]} 34... b6
{[%clk 0:01:11.5]} 35. cxb6 {[%clk 0:01:58.2]} 35... axb6 {[%clk 0:01:09.8]} 36.
Rg1 {[%clk 0:01:58]} 36... c5 {[%clk 0:01:06.4]} 37. Rg5+ {[%clk 0:01:56.8]}
37... Ke6 {[%clk 0:01:04.7]} 38. f5+ {[%clk 0:01:56]} 38... Ke7 {[%clk
0:01:01.4]} 39. Rg7 {[%clk 0:01:46.5]} 39... cxd4+ {[%clk 0:00:58.9]} 40. Ke4
{[%clk 0:01:45.2]} 40... Ra5 {[%clk 0:00:56.8]} 41. Rxh7 {[%clk 0:01:42]} 41...
Rxa2 {[%clk 0:00:54.5]} 42. Kxd4 {[%clk 0:01:37.9]} 42... Rd2+ {[%clk
0:00:44.7]} 43. Ke3 {[%clk 0:01:36.1]} 43... Rg2 {[%clk 0:00:39.9]} 44. e6
{[%clk 0:01:33.5]} 44... Rg3+ {[%clk 0:00:34]} 45. Kf4 {[%clk 0:01:32.6]} 1-0

[Event "Live Chess"]
[Site "Chess.com"]
[Date "2024.06.02"]
[Round "-"]
[White "Victor_Bondar"]
[Black "LL220284LL"]
[Result "0-1"]
[WhiteElo "1460"]
[BlackElo "2515"]
[TimeControl "300"]
[EndTime "4:04:08 PDT"]
[Termination "LL220284LL won by resignation"]

1. e4 {[%clk 0:04:56.1]} 1... d5 {[%clk 0:04:53.8]} 2. exd5 {[%clk 0:04:53]}
2... Qxd5 {[%clk 0:04:53.7]} 3. Nc3 {[%clk 0:04:52]} 3... Qa5 {[%clk 0:04:49.9]}
4. d4 {[%clk 0:04:49.8]} 4... c6 {[%clk 0:04:49]} 5. Nf3 {[%clk 0:04:48.8]} 5...
Nf6 {[%clk 0:04:47.9]} 6. Bd2 {[%clk 0:04:47.8]} 6... Qc7 {[%clk 0:04:46.1]} 7.
h3 {[%clk 0:04:45.3]} 7... Bf5 {[%clk 0:04:45.2]} 8. Be3 {[%clk 0:04:30.3]} 8...
e6 {[%clk 0:04:37.2]} 9. Bd3 {[%clk 0:04:29.1]} 9... Bxd3 {[%clk 0:04:35.9]} 10.
Qxd3 {[%clk 0:04:27.9]} 10... Nbd7 {[%clk 0:04:35.4]} 11. a3 {[%clk 0:04:24.8]}
11... Bd6 {[%clk 0:04:34.3]} 12. Ne4 {[%clk 0:04:13.8]} 12... Nxe4 {[%clk
0:04:32.6]} 13. Qxe4 {[%clk 0:04:12.9]} 13... Nf6 {[%clk 0:04:32.2]} 14. Qd3
{[%clk 0:04:07.1]} 14... Bf4 {[%clk 0:04:29.5]} 15. Ne5 {[%clk 0:03:47.3]} 15...
Bxe3 {[%clk 0:04:24.5]} 16. Qxe3 {[%clk 0:03:39.9]} 16... O-O-O {[%clk
0:04:21.9]} 17. O-O-O {[%clk 0:03:37.9]} 17... Kb8 {[%clk 0:04:17]} 18. Rd3
{[%clk 0:03:24.1]} 18... Nd5 {[%clk 0:04:14]} 19. Qg3 {[%clk 0:03:18.2]} 19...
f6 {[%clk 0:04:11.9]} 20. Nf7 {[%clk 0:03:05.5]} 20... Nf4 {[%clk 0:04:01.2]}
21. Nxh8 {[%clk 0:02:45.9]} 21... Ne2+ {[%clk 0:03:58.8]} 22. Kb1 {[%clk
0:02:40.3]} 22... Nxg3 {[%clk 0:03:58.7]} 23. fxg3 {[%clk 0:02:31.5]} 23... Rxh8
{[%clk 0:03:54.7]} 24. Re1 {[%clk 0:02:30]} 24... Re8 {[%clk 0:03:51.2]} 25. g4
{[%clk 0:02:26.8]} 25... Qd6 {[%clk 0:03:49]} 26. c4 {[%clk 0:02:23.7]} 26... c5
{[%clk 0:03:43.7]} 27. d5 {[%clk 0:02:21.5]} 27... e5 {[%clk 0:03:41.8]} 28. Ka2
{[%clk 0:02:06.6]} 28... Kc7 {[%clk 0:03:39.4]} 29. Rb3 {[%clk 0:01:52.3]} 29...
e4 {[%clk 0:03:36.2]} 30. Rbe3 {[%clk 0:01:48.9]} 30... Qf4 {[%clk 0:03:34.4]}
31. R1e2 {[%clk 0:01:39.7]} 31... Kd6 {[%clk 0:03:31.5]} 32. b4 {[%clk
0:01:38.4]} 32... b6 {[%clk 0:03:29.2]} 33. Kb3 {[%clk 0:01:35.4]} 33... Qf1
{[%clk 0:03:25.8]} 34. bxc5+ {[%clk 0:01:33]} 34... Kxc5 {[%clk 0:03:22.8]} 35.
Kc2 {[%clk 0:01:16.1]} 35... Qa1 {[%clk 0:03:19.7]} 36. Kb3 {[%clk 0:01:01.9]}
36... Qb1+ {[%clk 0:03:16.7]} 37. Kc3 {[%clk 0:00:59.3]} 37... Qc1+ {[%clk
0:03:14.9]} 38. Kb3 {[%clk 0:00:58.2]} 38... Qxc4+ {[%clk 0:03:13.4]} 39. Kb2
{[%clk 0:00:55.2]} 39... Kxd5 {[%clk 0:03:12.5]} 40. h4 {[%clk 0:00:48.8]} 40...
a5 {[%clk 0:03:09]} 41. Rc2 {[%clk 0:00:45.9]} 41... Qd4+ {[%clk 0:03:07.7]} 42.
Rcc3 {[%clk 0:00:40.7]} 42... Rc8 {[%clk 0:03:04.7]} 43. Kc2 {[%clk 0:00:39.2]}
43... Rxc3+ {[%clk 0:03:04.6]} 44. Rxc3 {[%clk 0:00:37.2]} 44... e3 {[%clk
0:03:04.1]} 45. Rd3 {[%clk 0:00:35.7]} 45... b5 {[%clk 0:03:01.3]} 46. Rxd4+
{[%clk 0:00:29.9]} 46... Kxd4 {[%clk 0:03:01.2]} 47. Kd1 {[%clk 0:00:28.7]}
47... b4 {[%clk 0:02:59.2]} 48. axb4 {[%clk 0:00:26.7]} 48... axb4 {[%clk
0:02:59.1]} 0-1

[Event "Live Chess"]
[Site "Chess.com"]
[Date "2024.06.02"]
[Round "-"]
[White "r0ad_t0-gm"]
[Black "JohanKjeldahl"]
[Result "1-0"]
[WhiteElo "2274"]
[BlackElo "1793"]
[TimeControl "300"]
[EndTime "4:04:19 PDT"]
[Termination "r0ad_t0-gm won by resignation"]

1. Nf3 {[%clk 0:04:54.7]} 1... Nf6 {[%clk 0:04:56.9]} 2. g3 {[%clk 0:04:53.6]}
2... d5 {[%clk 0:04:54.5]} 3. Bg2 {[%clk 0:04:52.6]} 3... g6 {[%clk 0:04:53.6]}
4. O-O {[%clk 0:04:51.6]} 4... Bg7 {[%clk 0:04:52.1]} 5. c4 {[%clk 0:04:50.8]}
5... c6 {[%clk 0:04:49.4]} 6. b3 {[%clk 0:04:48.5]} 6... O-O {[%clk 0:04:48.1]}
7. Bb2 {[%clk 0:04:47.6]} 7... Nbd7 {[%clk 0:04:45.4]} 8. a4 {[%clk 0:04:45.1]}
8... Qc7 {[%clk 0:04:44.2]} 9. cxd5 {[%clk 0:04:38.2]} 9... cxd5 {[%clk
0:04:38.7]} 10. Nc3 {[%clk 0:04:33.5]} 10... a6 {[%clk 0:04:34.7]} 11. Rc1
{[%clk 0:04:32.2]} 11... Qd6 {[%clk 0:04:27.7]} 12. d4 {[%clk 0:04:23.5]} 12...
b6 {[%clk 0:04:20.8]} 13. e3 {[%clk 0:04:04]} 13... Bb7 {[%clk 0:04:19.5]} 14.
Qe2 {[%clk 0:04:02.6]} 14... Rac8 {[%clk 0:04:17.3]} 15. Rfd1 {[%clk 0:04:00.7]}
15... Ne4 {[%clk 0:04:07.2]} 16. Nb1 {[%clk 0:03:27.6]} 16... Ndf6 {[%clk
0:03:57.5]} 17. Ba3 {[%clk 0:03:26.4]} 17... Qd8 {[%clk 0:03:38]} 18. Rxc8
{[%clk 0:03:24.5]} 18... Bxc8 {[%clk 0:03:36.5]} 19. Ne5 {[%clk 0:03:21.4]}
19... Re8 {[%clk 0:03:13.4]} 20. Rc1 {[%clk 0:03:12.1]} 20... Bb7 {[%clk
0:03:04.8]} 21. Qc2 {[%clk 0:03:09.3]} 21... Nd7 {[%clk 0:02:55.7]} 22. Nc6
{[%clk 0:03:04.3]} 22... Bxc6 {[%clk 0:02:53]} 23. Qxc6 {[%clk 0:03:04.2]} 23...
e6 {[%clk 0:02:50.2]} 24. Bxe4 {[%clk 0:02:59.3]} 24... dxe4 {[%clk 0:02:48.4]}
25. Qxe4 {[%clk 0:02:59.2]} 25... Nf6 {[%clk 0:02:40.6]} 26. Qb7 {[%clk
0:02:51.7]} 26... Nd5 {[%clk 0:02:39.2]} 27. Nd2 {[%clk 0:02:46.2]} 27... Qg5
{[%clk 0:02:37.5]} 28. Rc8 {[%clk 0:02:37.1]} 28... Rd8 {[%clk 0:02:29.6]} 29.
Ne4 {[%clk 0:02:29.5]} 1-0